lending/lending_fUSD_20251116
["ID","MTS","AMOUNT","RATE_DAILY","PERIOD"]
[394102759,1763283054710,-150.0,0.00024192,2]
[394102760,1763283054719,-150.0,0.00024192,2]
[394102761,1763283054728,-150.0,0.00024192,2]
[394102762,1763283054738,-150.0,0.00024192,2]
[394102763,1763283054747,-150.0,0.00024192,2]
[394102764,1763283054757,-150.0,0.00024192,2]
[394102765,1763283054766,-150.69,0.00024192,2]
[394102766,1763283054776,-150.0,0.00024192,2]
[394102767,1763283054786,-150.0,0.00024192,2]
[394102768,1763283054795,-150.0,0.00024192,2]
[394102769,1763283054805,-150.0,0.00024192,2]
[394102770,1763283054814,-150.0,0.00024192,2]
[394102771,1763283054823,-150.0,0.00024192,2]
[394102772,1763283054832,-285.47,0.00024192,2]
[394102773,1763283054842,-418.08009869,0.0002421,2]
[394102774,1763283054852,-3663.49353186,0.0002421,2]
[394102775,1763283054863,-416.61,0.00024327,2]
[394102776,1763283054874,-416.61,0.00024327,2]
[394102777,1763283054883,-416.61,0.00024327,2]
[394102778,1763283054895,-416.61,0.00024327,2]
[394102779,1763283054905,-416.61,0.00024327,2]
[394102780,1763283054914,-416.61,0.00024327,2]
[394102781,1763283054924,-833.22,0.00024327,2]
[394102782,1763283054935,-416.71,0.00024327,2]
[394102783,1763283054944,-215.18102808,0.00024382,2]
[394102784,1763283054954,-311.68,0.00024427,2]
[394102785,1763283054964,-1000.0,0.0002451,2]
[394102786,1763283054973,-592.14627742,0.0002465,2]
[394102787,1763283054983,-166.01142367,0.0002465,2]
[394102788,1763283054993,-150.57530821,0.00024657,2]
[394102789,1763283055002,-666.0,0.00024657,2]
[394102790,1763283055011,-604.0,0.00024658,2]
[394102791,1763283055021,-604.0,0.00024658,2]
[394102792,1763283055030,-604.0,0.00024658,2]
[394102793,1763283055039,-297.0,0.00024658,2]
[394102794,1763283055047,-297.0,0.00024658,2]
[394102795,1763283055057,-297.0,0.00024658,2]
[394102796,1763283055066,-297.0,0.00024658,2]
[394102797,1763283055075,-297.0,0.00024658,2]
[394102798,1763283055084,-297.0,0.00024658,2]
[394102799,1763283055093,-297.0,0.00024658,2]
[394102800,1763283055102,-297.0,0.00024658,2]
[394102801,1763283055111,-297.0,0.00024658,2]
[394102802,1763283055120,-297.0,0.00024658,2]
[394102803,1763283055129,-297.0,0.00024658,2]
[394102804,1763283055138,-297.0,0.00024658,2]
[394102805,1763283055147,-297.0,0.00024658,2]
[394102806,1763283055156,-295.0,0.00024658,2]
[394102807,1763283055166,-295.0,0.00024658,2]
[394102808,1763283055175,-295.0,0.00024658,2]
[394102809,1763283055184,-295.0,0.00024658,2]
[394102811,1763283055194,-295.0,0.00024658,2]
[394102812,1763283055203,-295.0,0.00024658,2]
[394102814,1763283055213,-295.0,0.00024658,2]
[394102815,1763283055222,-268.0,0.00024658,2]
[394102816,1763283055231,-268.0,0.00024658,2]
[394102817,1763283055240,-268.0,0.00024658,2]
[394102818,1763283055249,-268.0,0.00024658,2]
[394102819,1763283055258,-268.0,0.00024658,2]
[394102820,1763283055267,-268.0,0.00024658,2]
[394102821,1763283055276,-268.0,0.00024658,2]
[394102822,1763283055286,-268.0,0.00024658,2]
[394102823,1763283055295,-268.0,0.00024658,2]
[394102824,1763283055304,-268.0,0.00024658,2]
[394102825,1763283055313,-268.0,0.00024658,2]
[394102826,1763283055322,-268.0,0.00024658,2]
[394102827,1763283055331,-268.0,0.00024658,2]
[394102828,1763283055340,-268.0,0.00024658,2]
[394102829,1763283055349,-268.0,0.00024658,2]
[394102830,1763283055358,-273.0,0.00024658,2]
[394102831,1763283055368,-273.0,0.00024658,2]
[394102832,1763283055377,-273.0,0.00024658,2]
[394102833,1763283055387,-273.0,0.00024658,2]
[394102834,1763283055397,-273.0,0.00024658,2]
[394102835,1763283055406,-273.0,0.00024658,2]
[394102836,1763283055416,-271.0,0.00024658,2]
[394102837,1763283055425,-271.0,0.00024658,2]
[394102838,1763283055434,-271.0,0.00024658,2]
[394102839,1763283055445,-271.0,0.00024658,2]
[394102840,1763283055455,-271.0,0.00024658,2]
[394102841,1763283055464,-271.0,0.00024658,2]
[394102842,1763283055474,-271.0,0.00024658,2]
[394102843,1763283055483,-271.0,0.00024658,2]
[394102844,1763283055492,-271.0,0.00024658,2]
[394102845,1763283055502,-271.0,0.00024658,2]
[394102846,1763283055511,-271.0,0.00024658,2]
[394102847,1763283055520,-271.0,0.00024658,2]
[394102848,1763283055530,-271.0,0.00024658,2]
[394102849,1763283055540,-271.0,0.00024658,2]
[394102850,1763283055550,-406.0,0.00024658,2]
[394102851,1763283055559,-406.0,0.00024658,2]
[394102852,1763283055570,-406.0,0.00024658,2]
[394102853,1763283055579,-406.0,0.00024658,2]
[394102854,1763283055588,-406.0,0.00024658,2]
[394102855,1763283055597,-406.0,0.00024658,2]
[394102856,1763283055607,-383.0,0.00024658,2]
[394102857,1763283055616,-383.0,0.00024658,2]
[394102858,1763283055625,-383.0,0.00024658,2]
[394102859,1763283055634,-383.0,0.00024658,2]
[394102860,1763283055644,-383.0,0.00024658,2]
[394102861,1763283055653,-383.0,0.00024658,2]
[394102862,1763283055662,-383.0,0.00024658,2]
[394102863,1763283055671,-383.0,0.00024658,2]
[394102864,1763283055681,-383.0,0.00024658,2]
[394102865,1763283055690,-383.0,0.00024658,2]
[394102866,1763283055700,-383.0,0.00024658,2]
[394102867,1763283055709,-383.0,0.00024658,2]
[394102868,1763283055718,-383.0,0.00024658,2]
[394102869,1763283055729,-383.0,0.00024658,2]
[394102870,1763283055738,-399.0,0.00024658,2]
[394102871,1763283055748,-399.0,0.00024658,2]
[394102872,1763283055758,-399.0,0.00024658,2]
[394102873,1763283055768,-399.0,0.00024658,2]
[394102874,1763283055777,-399.0,0.00024658,2]
[394102875,1763283055787,-399.0,0.00024658,2]
[394102876,1763283055796,-251.0,0.00024658,2]
[394102877,1763283055805,-251.0,0.00024658,2]
[394102878,1763283055813,-251.0,0.00024658,2]
[394102879,1763283055822,-251.0,0.00024658,2]
[394102880,1763283055832,-251.0,0.00024658,2]
[394102881,1763283055841,-251.0,0.00024658,2]
[394102882,1763283055850,-251.0,0.00024658,2]
[394102883,1763283055859,-251.0,0.00024658,2]
[394102884,1763283055873,-251.0,0.00024658,2]
[394102885,1763283055882,-251.0,0.00024658,2]
[394102886,1763283055892,-251.0,0.00024658,2]
[394102887,1763283055902,-251.0,0.00024658,2]
[394102888,1763283055912,-251.0,0.00024658,2]
[394102889,1763283055922,-251.0,0.00024658,2]
[394102890,1763283055931,-292.0,0.00024658,2]
[394102891,1763283055941,-292.0,0.00024658,2]
[394102892,1763283055950,-292.0,0.00024658,2]
[394102893,1763283055960,-292.0,0.00024658,2]
[394102894,1763283055969,-292.0,0.00024658,2]
[394102895,1763283055978,-292.0,0.00024658,2]
[394102896,1763283055987,-246.0,0.00024658,2]
[394102897,1763283055996,-246.0,0.00024658,2]
[394102898,1763283056006,-246.0,0.00024658,2]
[394102899,1763283056015,-246.0,0.00024658,2]
[394102900,1763283056025,-246.0,0.00024658,2]
[394102901,1763283056034,-246.0,0.00024658,2]
[394102902,1763283056043,-246.0,0.00024658,2]
[394102903,1763283056053,-246.0,0.00024658,2]
[394102904,1763283056062,-246.0,0.00024658,2]
[394102905,1763283056071,-246.0,0.00024658,2]
[394102906,1763283056080,-246.0,0.00024658,2]
[394102907,1763283056089,-246.0,0.00024658,2]
[394102908,1763283056098,-246.0,0.00024658,2]
[394102909,1763283056107,-246.0,0.00024658,2]
[394102910,1763283056116,-153.0,0.00024658,2]
[394102911,1763283056125,-153.0,0.00024658,2]
[394102912,1763283056134,-153.0,0.00024658,2]
[394102913,1763283056143,-153.0,0.00024658,2]
[394102914,1763283056153,-1000.0,0.00024658,2]
[394102915,1763283056161,-773.62,0.00024658,2]
[394102916,1763283056171,-1726.83,0.00024658,30]
[394102917,1763283056180,-151.0,0.00024658,7]
[394102918,1763283056189,-151.0,0.00024658,7]
[394102919,1763283056199,-151.0,0.00024658,7]
[394102920,1763283056209,-151.0,0.00024658,7]
[394102921,1763283056219,-217.15233878,0.00024658,2]
[394102922,1763283056228,-152.0,0.00024691,13]
[394102923,1763283056237,-2852.66384343,0.00024704,2]
[394102924,1763283056247,-184.05080951,0.00024704,4]
[394102925,1763283056256,-477.55763504,0.00024704,2]
[394102926,1763283056267,-1613.0,0.00024726,2]
[394102927,1763283056276,-500.0,0.0002474,2]
[394102928,1763283056286,-525.42375678,0.0002474,2]
[394102929,1763283056412,-500.0,0.0002474,2]
[394102930,1763283056423,-582.52580582,0.0002479,2]
[394102931,1763283056432,-671.82572836,0.00024799,2]
[394102932,1763283056441,-652.07,0.000248,7]
[394102933,1763283056450,-123111.76058297,0.000248,3]
[394102935,1763283056819,-2473.65091241,0.000248,3]
[394102936,1763283056942,-1604.0,0.00017969,2]
[394102937,1763283056953,-184.129681,0.00018,2]
[394102938,1763283056963,-151.0,0.00018,2]
[394102939,1763283056972,-151.0,0.00018082,2]
[394102940,1763283056981,-184.129681,0.00018082,2]
[394102941,1763283056991,-298.320965,0.00018082,2]
[394102942,1763283057000,-151.0,0.0002,2]
[394102943,1763283057010,-184.129681,0.0002,2]
[394102944,1763283057020,-151.0,0.00020528,2]
[394102945,1763283057029,-228.315147,0.00020528,2]
[394102946,1763283057039,-184.129681,0.00020528,2]
[394102947,1763283057048,-1604.0,0.00020969,2]
[394102948,1763283057058,-151.0,0.0002156,2]
[394102949,1763283057067,-1604.0,0.00023969,2]
[394102950,1763283057077,-476487.49256962,0.000248,3]
[394102951,1763283057086,-182.08106789,0.00024865,2]
[394102952,1763283057095,-7052.86335685,0.00024874,2]
[394102953,1763283057105,-9741.63952242,0.00024874,2]
[394102954,1763283057115,-2000.0,0.000249,2]
[394102955,1763283057124,-166.65,0.00024974,2]
[394102956,1763283057133,-602.19500375,0.00025,2]
[394102957,1763283057143,-205.30448806,0.00025,2]
[394102958,1763283057152,-1765.74792329,0.00025,2]
[394102959,1763283057161,-155.98689118,0.00025,2]
[394102960,1763283057170,-360.0,0.00025,2]
[394102961,1763283057179,-5914.87530298,0.00025,2]
[394102962,1763283057188,-3011.24515109,0.00025,2]
[394102963,1763283057197,-7059.13160969,0.00025,2]
[394102964,1763283057206,-1052.7453929,0.00025,2]
[394102965,1763283057215,-165.46295318,0.00025,2]
[394102966,1763283057224,-4789.56621979,0.00025,15]
[394102967,1763283057233,-2291.55620745,0.00025,2]
[394102968,1763283057242,-151.0,0.00025,2]
[394102969,1763283057251,-151.0,0.00025,2]
[394102970,1763283057259,-413.39975124,0.00025,2]
[394102971,1763283057269,-479.06402154,0.00025,3]
[394102972,1763283057278,-214519.0,0.00025,2]
[394102973,1763283057287,-150.0,0.00025068,2]
[394102974,1763283057296,-150.0,0.00025068,2]
[394102975,1763283057305,-416.5,0.00025149,2]
[394102976,1763283057315,-416.71,0.00025149,2]
[394102977,1763283057324,-416.71,0.00025149,2]
[394102978,1763283057334,-416.71,0.00025149,2]
[394102979,1763283057343,-416.71,0.00025149,2]
[394102980,1763283057352,-225.18697532,0.00025206,2]
[394102981,1763283057362,-152.0,0.00025224,14]
[394102982,1763283057371,-401.19111454,0.00025313,2]
[394102983,1763283057380,-151.0,0.00025313,2]
[394102984,1763283057390,-344.91441206,0.00025313,2]
[394102985,1763283057399,-3831.0,0.00025355,2]
[394102986,1763283057408,-150.0,0.00025361,2]
[394102987,1763283057417,-150.0,0.00025361,2]
[394102988,1763283057426,-150.0,0.00025361,2]
[394102989,1763283057437,-150.0,0.00025361,2]
[394102990,1763283057446,-150.0,0.00025361,2]
[394102991,1763283057455,-150.0,0.00025361,2]
[394102992,1763283057464,-532.0,0.00025373,7]
[394102993,1763283057473,-535.0,0.00025373,7]
[394102994,1763283057482,-230.68,0.00025451,2]
[394102995,1763283057491,-5518.0,0.000256,3]
[394102996,1763283057501,-177.29,0.00025615,2]
[394102997,1763283057509,-177.29,0.00025615,2]
[394102998,1763283057519,-177.29,0.00025615,2]
[394102999,1763283057528,-177.29,0.00025615,2]
[394103000,1763283057537,-177.29,0.00025615,2]
[394103001,1763283057546,-177.29,0.00025615,2]
[394103002,1763283057555,-177.29,0.00025615,2]
[394103003,1763283057564,-851.98440007,0.00025704,2]
[394103004,1763283057573,-233.51889341,0.00025754,2]
[394103005,1763283057582,-152.0,0.00025757,15]
[394103006,1763283057592,-220.62187034,0.00025757,5]
[394103007,1763283057601,-479.06402154,0.000258,3]
[394103008,1763283057610,-150.0,0.00025836,2]
[394103009,1763283057619,-150.0,0.00025836,2]
[394103010,1763283057628,-150.0,0.00025836,2]
[394103011,1763283057638,-150.0,0.00025836,2]
[394103012,1763283057647,-150.0,0.00025836,2]
[394103013,1763283057656,-175.01,0.00025836,2]
[394103014,1763283057665,-150.0,0.00025836,2]
[394103015,1763283057674,-150.0,0.00025836,2]
[394103016,1763283057683,-150.0,0.00025836,2]
[394103017,1763283057692,-150.0,0.00025836,2]
[394103018,1763283057702,-150.0,0.00025836,2]
[394103019,1763283057711,-150.0,0.00025836,2]
[394103020,1763283057720,-150.0,0.00025836,2]
[394103021,1763283057730,-150.0,0.00025836,2]
[394103022,1763283057739,-150.0,0.00025836,2]
[394103023,1763283057749,-150.0,0.00025836,2]
[394103024,1763283057759,-150.0,0.00025836,2]
[394103025,1763283057769,-150.0,0.00025836,2]
[394103026,1763283057778,-150.0,0.00025836,2]
[394103027,1763283057787,-150.0,0.00025836,2]
[394103028,1763283057797,-300.0,0.00025836,2]
[394103029,1763283057806,-150.0,0.0002589,2]
[394103030,1763283057815,-150.0,0.0002589,2]
[394103031,1763283057825,-150.94,0.0002589,2]
[394103032,1763283057834,-177.29,0.00025944,2]
[394103033,1763283057843,-177.29,0.00025944,2]
[394103034,1763283057852,-416.71,0.00025971,2]
[394103035,1763283058002,-416.71,0.00025971,2]
[394103036,1763283058011,-416.71,0.00025971,2]
[394103037,1763283058020,-416.71,0.00025971,2]
[394103038,1763283058029,-416.71,0.00025971,2]
[394103039,1763283058038,-416.71,0.00025971,2]
[394103040,1763283058047,-416.71,0.00025971,2]
[394103041,1763283058055,-416.71,0.00025971,2]
[394103042,1763283058064,-416.71,0.00025971,2]
[394103043,1763283058073,-416.71,0.00025971,2]
[394103044,1763283058082,-416.71,0.00025971,2]
[394103045,1763283058091,-416.71,0.00025971,2]
[394103046,1763283058100,-416.71,0.00025971,2]
[394103047,1763283058109,-416.71,0.00025971,2]
[394103048,1763283058118,-416.71,0.00025971,2]
[394103049,1763283058127,-416.71,0.00025971,2]
[394103050,1763283058136,-416.71,0.00025971,2]
[394103051,1763283058145,-422.67,0.00025971,2]
[394103052,1763283058155,-594.09518693,0.0002599,2]
[394103053,1763283058165,-21162.63685909,0.00026,2]
[394103054,1763283058174,-4138.65,0.00026,2]
[394103055,1763283058183,-214.1178425,0.00026,2]
[394103056,1763283058191,-161.16998996,0.00026,2]
[394103057,1763283058200,-1271.92052,0.00026,2]
[394103058,1763283058209,-5518.0,0.000262,5]
[394103059,1763283058219,-177.29,0.00026273,2]
[394103060,1763283058228,-177.29,0.00026273,2]
[394103061,1763283058238,-177.29,0.00026273,2]
[394103062,1763283058246,-242.15909246,0.00026302,2]
[394103063,1763283058255,-532.0,0.00026388,7]
[394103064,1763283058264,-652.07,0.000264,7]
[394103065,1763283058274,-479.06402154,0.000265,3]
[394103066,1763283058284,-532.0,0.00026581,7]
[394103067,1763283058300,-150.0,0.00026658,2]
[394103068,1763283058309,-150.0,0.00026658,2]
[394103069,1763283058318,-150.0,0.00026658,2]
[394103070,1763283058327,-150.0,0.00026658,2]
[394103071,1763283058336,-150.0,0.00026658,2]
[394103072,1763283058345,-150.0,0.00026658,2]
[394103073,1763283058354,-150.0,0.00026658,2]
[394103074,1763283058363,-150.0,0.00026658,2]
[394103075,1763283058372,-999.58,0.00026676,2]
[394103076,1763283058381,-416.03518578,0.00026682,2]
[394103077,1763283058390,-180.94508946,0.00026682,2]
[394103078,1763283058399,-357.6762453,0.00026682,2]
[394103079,1763283058408,-284.14199689,0.00026744,2]
[394103080,1763283058417,-251.11897888,0.0002685,2]
[394103081,1763283058426,-311.68,0.00026855,7]
[394103082,1763283058435,-500.0,0.00026932,2]
[394103083,1763283058444,-269.19859554,0.00026932,2]
[394103084,1763283058453,-575.0,0.00026969,2]
[394103085,1763283058462,-1318.0,0.00026969,2]
[394103086,1763283058471,-608.0,0.00026969,2]
[394103087,1763283058479,-3430.0,0.00026969,2]
[394103088,1763283058488,-821.0,0.00026969,2]
[394103089,1763283058497,-1599.0,0.00026969,2]
[394103090,1763283058506,-793.0,0.00026969,2]
[394103091,1763283058515,-1275.0,0.00026969,2]
[394103092,1763283058525,-6488.0,0.00026969,2]
[394103093,1763283058535,-1604.0,0.00026969,2]
[394103094,1763283058544,-250.0,0.00027,2]
[394103095,1763283058553,-1022.44098082,0.00027,2]
[394103096,1763283058562,-530.0,0.00027,2]
[394103097,1763283058571,-200.0,0.00027009,2]
[394103098,1763283058580,-2258.0,0.00027039,2]
[394103099,1763283058590,-323.1,0.00027074,15]
[394103100,1763283058599,-3645.67,0.00027123,2]
[394103101,1763283058608,-266.13,0.00027123,4]
[394103103,1763283058617,-150.0,0.00027161,2]
[394103104,1763283058626,-150.0,0.00027161,2]
[394103105,1763283058635,-150.0,0.00027161,2]
[394103106,1763283058644,-150.0,0.00027161,2]
[394103107,1763283058653,-150.0,0.00027161,2]
[394103108,1763283058662,-150.0,0.00027161,2]
[394103109,1763283058671,-215.18102808,0.00027205,2]
[394103110,1763283058680,-163.1162553,0.00027218,2]
[394103111,1763283058689,-150.0,0.00027369,2]
[394103112,1763283058698,-4065.64625683,0.0002739,2]
[394103113,1763283058707,-8031.72991619,0.0002739,2]
[394103114,1763283058716,-237.75620666,0.00027397,4]
[394103115,1763283058726,-500.0,0.00027397,4]
[394103116,1763283058735,-500.0,0.00027397,4]
[394103117,1763283058744,-500.0,0.00027397,4]
[394103118,1763283058753,-500.0,0.00027397,4]
[394103119,1763283058763,-500.0,0.00027397,4]
[394103120,1763283058772,-500.0,0.00027397,4]
[394103121,1763283058782,-500.0,0.00027397,4]
[394103122,1763283058791,-500.0,0.00027397,4]
[394103123,1763283058800,-513.46,0.00027397,2]
[394103124,1763283058810,-773.62,0.00027397,2]
[394103125,1763283058819,-300.0,0.00027397,2]
[394103126,1763283058828,-2516.06,0.00027397,2]
[394103127,1763283058838,-500.19183287,0.00027397,5]
[394103128,1763283058848,-157.19997091,0.00027397,5]
[394103129,1763283058857,-158.3852086,0.00027397,5]
[394103130,1763283058870,-260.4103811,0.00027398,2]
[394103131,1763283058880,-583.8,0.000274,7]
[394103132,1763283058889,-532.0,0.00027402,14]
[394103133,1763283058899,-198.86769523,0.000275,2]
[394103134,1763283058909,-167.01,0.000275,7]
[394103135,1763283058918,-543.26127162,0.000275,2]
[394103136,1763283058928,-727.96,0.00027683,2]
[394103137,1763283058937,-532.0,0.00027789,14]
[394103138,1763283058947,-270.0455652,0.00027946,2]
[394103139,1763283058956,-160.0,0.00028,2]
[394103140,1763283058966,-1271.92051,0.00028,2]
[394103141,1763283058975,-431.42848765,0.00028051,2]
[394103142,1763283058985,-370.91026638,0.00028051,2]
[394103143,1763283058994,-150.0,0.00028219,2]
[394103144,1763283059003,-532.0,0.00028417,14]
[394103145,1763283059011,-280.03725112,0.00028494,2]
[394103146,1763283059020,-151.0,0.000285,2]
[394103147,1763283059029,-2000.0,0.000286,2]
[394103148,1763283059038,-1047.79,0.000287,14]
[394103149,1763283059048,-532.0,0.00028997,14]
[394103150,1763283059057,-747.09760847,0.00029,2]
[394103151,1763283059066,-1929.64897332,0.00029,2]
[394103152,1763283059075,-11080.10952497,0.00029,2]
[394103153,1763283059084,-228.93022402,0.00029002,30]
[394103154,1763283059094,-290.39862941,0.00029042,2]
[394103155,1763283059109,-150.0,0.00029052,2]
[394103156,1763283059117,-500.0,0.00029124,7]
[394103157,1763283059126,-311.68,0.00029282,30]
[394103158,1763283059135,-447.3913417,0.0002942,2]
[394103159,1763283059145,-384.63394623,0.0002942,2]
[394103160,1763283059154,-532.0,0.00029432,14]
[394103161,1763283059163,-12385.0,0.00029463,7]
[394103162,1763283059172,-1116.76580326,0.000295,7]
[394103163,1763283059182,-1079.49266535,0.00029532,5]
[394103164,1763283059191,-1031.59303132,0.00029532,5]
[394103165,1763283059200,-970.1185988,0.00029532,5]
[394103166,1763283059209,-3162.0,0.00029569,2]
[394103167,1763283059218,-301.1433787,0.0002959,2]
[394103168,1763283059227,-851.98440007,0.00029608,2]
[394103169,1763283059236,-1726.83,0.00029704,30]
[394103170,1763283059245,-6631.312429,0.000299,2]
[394103171,1763283059255,-575.0,0.00029969,2]
[394103172,1763283059263,-1318.0,0.00029969,2]
[394103173,1763283059273,-608.0,0.00029969,2]
[394103174,1763283059282,-3430.0,0.00029969,2]
[394103175,1763283059292,-821.0,0.00029969,2]
[394103176,1763283059301,-1599.0,0.00029969,2]
[394103177,1763283059310,-793.0,0.00029969,2]
[394103178,1763283059319,-1275.0,0.00029969,2]
[394103179,1763283059328,-6488.0,0.00029969,2]
[394103180,1763283059337,-234.45350801,0.0002999,2]
[394103181,1763283059345,-47319.30604691,0.0003,5]
[394103182,1763283059355,-471.33381722,0.0003,2]
[394103183,1763283059364,-808.68483877,0.0003,30]
[394103184,1763283059372,-1795.74773521,0.0003,2]
[394103185,1763283059381,-4580.43669035,0.0003,2]
[394103186,1763283059390,-300.0,0.0003,30]
[394103187,1763283059398,-161.07548295,0.0003,2]
[394103188,1763283059407,-181.0,0.0003,2]
[394103189,1763283059416,-2059.18,0.0003,2]
[394103190,1763283059426,-1000.0,0.0003,39]
[394103191,1763283059435,-5629.47949221,0.0003,5]
[394103192,1763283059444,-5539.77,0.0003,2]
[394103193,1763283059454,-151.0,0.0003,2]
[394103194,1763283059464,-1012.01529811,0.0003,2]
[394103195,1763283059473,-6034.13354987,0.0003,3]
[394103196,1763283059483,-1000.0,0.0003,9]
[394103197,1763283059492,-1000.0,0.0003,9]
[394103198,1763283059501,-1000.0,0.0003,9]
[394103199,1763283059510,-1000.0,0.0003,7]
[394103200,1763283059519,-2472.24079512,0.0003,2]
[394103201,1763283059530,-184.66,0.0003,22]
[394103202,1763283059539,-215.18102808,0.00030027,15]
[394103203,1763283059548,-500.0,0.00030127,2]
[394103204,1763283059557,-291.57397025,0.0003013,30]
[394103205,1763283059566,-300.0,0.0003013,30]
[394103206,1763283059575,-200.0,0.0003013,2]
[394103207,1763283059584,-773.62,0.00030137,2]
[394103208,1763283059593,-150.0,0.00030137,30]
[394103209,1763283059602,-150.0,0.00030137,30]
[394103210,1763283059611,-1013.0,0.00030137,120]
[394103211,1763283059620,-150.0,0.00030161,2]
[394103212,1763283059629,-151.0,0.00030377,2]
[394103213,1763283059638,-284.14199689,0.00030388,2]
[394103214,1763283059647,-532.0,0.00030447,14]
[394103215,1763283059656,-151.0,0.000305,7]
[394103216,1763283059665,-96000.0,0.00030685,30]
[394103217,1763283059674,-500.0,0.00030768,7]
[394103218,1763283059683,-463.94482134,0.00030789,2]
[394103219,1763283059693,-398.86540225,0.00030789,2]
[394103220,1763283059702,-1550.69859932,0.00030888,60]
[394103221,1763283059711,-11497.46816876,0.0003095,2]
[394103222,1763283059720,-318.18542228,0.00031,120]
[394103223,1763283059730,-2059.18,0.00031,2]
[394103224,1763283059740,-500.0,0.00031,60]
[394103225,1763283059749,-700.0,0.00031,120]
[394103226,1763283059758,-160.0,0.00031,14]
[394103227,1763283059869,-479.06402154,0.00031,30]
[394103228,1763283059891,-2100.59598712,0.0003121,2]
[394103229,1763283059900,-640.82167638,0.0003143,4]
[394103230,1763283059911,-151.0,0.000315,7]
[394103231,1763283059920,-652.07,0.000315,7]
[394103232,1763283059929,-181.53,0.00031507,120]
[394103233,1763283059938,-583.8,0.000317,30]
[394103234,1763283059949,-311.68,0.00031709,30]
[394103235,1763283059959,-479.06402154,0.000319,30]
[394103236,1763283059969,-151.0,0.00031957,3]
[394103237,1763283059978,-697.13317941,0.00032,60]
[394103238,1763283059987,-500.0,0.00032,61]
[394103239,1763283059996,-600.0,0.00032,120]
[394103240,1763283060005,-151.0,0.00032,2]
[394103241,1763283060014,-151.0,0.00032,2]
[394103242,1763283060023,-197.63284531,0.00032,120]
[394103243,1763283060032,-665.4742987,0.00032,120]
[394103244,1763283060042,-1312.28041013,0.00032,2]
[394103245,1763283060052,-651.2,0.00032,7]
[394103246,1763283060061,-167.01,0.000321,7]
[394103247,1763283060071,-2059.18,0.000321,2]
[394103248,1763283060080,-42094.13426063,0.00032109,14]
[394103249,1763283060089,-481.11077973,0.00032158,2]
[394103250,1763283060098,-2000.0,0.000323,2]
[394103251,1763283060108,-1069.0,0.00032335,2]
[394103252,1763283060117,-500.0,0.00032412,7]
[394103253,1763283060126,-215.18102808,0.0003285,15]
[394103254,1763283060135,-212.0,0.00032877,3]
[394103255,1763283060144,-773.62,0.00032877,2]
[394103256,1763283060153,-500.0,0.00032877,7]
[394103257,1763283060163,-506.71933362,0.00032877,7]
[394103258,1763283060172,-479.06402154,0.000329,30]
[394103259,1763283060181,-575.0,0.00032969,2]
[394103260,1763283060191,-1318.0,0.00032969,2]
[394103261,1763283060202,-608.0,0.00032969,2]
[394103262,1763283060211,-3430.0,0.00032969,2]